bitfinex/quotes_SOLUSD_20241117
["timestamp","ask_amount","ask_price","bid_price","bid_amount"]
[1731845970741,76.23190082,233.16,233.12,23.776884]
[1731845971268,50.9288355,233.13,233.12,23.776884]
[1731845972069,126.59006906,233.21,233.14,23.776884]
[1731845973264,126.59006906,233.21,233.13,15.013]
[1731845973770,126.59006906,233.21,233.13,10.7236]
[1731845974184,130.87796906,233.21,233.11,4.2898]
[1731845974344,130.87796906,233.21,233.07,17.143632]
[1731845974345,20.0,233.2,233.08,10.7256]
[1731845974841,20.0,233.2,233.03,10.728]
[1731845975164,20.0,233.16,233.03,10.728]
[1731845975480,23.776884,233.17,233.03,10.728]
[1731845975655,20.0,233.16,233.03,10.728]
[1731845975861,4.289,233.15,232.94,15.0252]
[1731845976378,45.4763,233.14,232.96,23.776884]
[1731845976595,23.776884,233.13,232.94,15.0252]
[1731845976771,45.4763,233.14,232.94,36.4899]
[1731845976976,45.4763,233.14,232.94,43.20695098]
[1731845977160,23.776884,233.13,232.94,43.20695098]
[1731845977353,23.776884,233.13,232.94,36.4899]
[1731845977553,23.776884,233.11,232.94,15.0252]
[1731845977858,20.0,233.1,232.9,21.4683]
[1731845978060,4.2901,233.09,232.9,21.4683]
[1731845981468,23.776884,233.08,232.9,21.4683]
[1731845981958,4.2897,233.12,232.9,21.4683]
[1731845983055,49.7656,233.14,232.93,23.776884]
[1731845984169,49.7656,233.14,232.95,23.776884]
[1731845985380,17.0572,233.14,232.96,36.4868]
[1731845987365,43.776884,233.13,232.96,21.4629]
[1731845987691,0.12549,233.12,232.96,21.4629]
[1731845988061,43.776884,233.13,232.96,21.4629]
[1731845988464,20.0,233.1,232.96,21.4629]
[1731845989075,23.776884,233.11,232.96,21.4629]
[1731845989580,4.2897,233.12,232.96,21.4629]
[1731845992384,23.776884,233.11,232.96,21.4629]
[1731845993461,28.066484,233.12,232.96,21.4629]
[1731845993680,23.776884,233.1,232.96,21.4629]
[1731845994884,4.2901,233.09,232.96,21.4629]
[1731845997083,4.2895,233.13,232.96,21.4629]
[1731845997390,24.2895,233.13,232.96,21.4629]
[1731845997688,4.2895,233.13,232.97,20.0]
[1731845997894,12.7679,233.14,232.97,20.0]
[1731845998870,12.7679,233.14,232.98,81.721584]
[1731845999074,4.2884,233.19,233.0,20.0]
[1731845999767,13.069,233.31,233.06,23.776884]
[1731845999964,0.2,233.51,233.13,20.0]
[1731845999965,13.069,233.5,233.13,20.0]
[1731846000169,13.069,233.5,233.19,20.0]
[1731846000376,13.069,233.5,233.21,20.0]
[1731846000596,13.069,233.5,233.23,20.0]
[1731846000976,4.2832,233.47,233.25,20.0]
[1731846001185,125.06943595,233.45,233.25,20.0]
[1731846002107,125.06943595,233.45,233.26,15.0046]
[1731846002395,7.87557471,233.53,233.29,43.776884]
[1731846002396,0.4557935,233.53,233.29,43.776884]
[1731846002577,0.4557935,233.53,233.29,49.20015417]
[1731846002779,0.4557935,233.53,233.3,5.42327017]
[1731846003090,0.4557935,233.53,233.33,23.776884]
[1731846003398,0.4557935,233.53,233.35,23.776884]
[1731846003701,0.4557935,233.53,233.36,20.0]
[1731846004072,0.4557935,233.53,233.34,20.0]
[1731846004279,0.4557935,233.53,233.37,10.7126]
[1731846004586,4.7379935,233.53,233.37,10.7126]
[1731846005093,20.39367462,233.52,233.37,10.7126]
[1731846005294,20.39367462,233.52,233.28,32.8458]
[1731846005500,0.09367462,233.48,233.3,10.7155]
[1731846005675,0.09367462,233.44,233.3,10.7155]
[1731846006088,23.776884,233.43,233.2,54.2863]
[1731846006286,20.21916462,233.42,233.27,1.713524]
[1731846006490,23.776884,233.39,233.27,1.713524]
[1731846006807,0.21916462,233.37,233.27,1.713524]
[1731846007101,20.0,233.36,233.22,15.0071]
[1731846007302,23.776884,233.35,233.22,15.0071]
[1731846007677,0.1,233.5,233.22,15.0071]
[1731846007879,0.2,233.49,233.23,20.0]
[1731846008189,0.1,233.5,233.23,20.0]
[1731846008597,0.1,233.48,233.23,20.0]
[1731846008893,0.1,233.48,233.22,15.0071]
[1731846008894,0.19367462,233.46,233.25,20.0]
[1731846009102,0.1,233.44,233.25,20.0]
[1731846009279,20.34465462,233.39,233.24,10.7185]
[1731846009476,0.34465462,233.37,233.24,10.7185]
[1731846009885,0.34465462,233.32,233.17,10.7216]
[1731846010101,0.34465462,233.32,233.17,15.0103]
[1731846010307,0.09367462,233.3,233.11,10.7243]
[1731846010488,0.34465462,233.28,233.12,4.2895]
[1731846010678,20.0,233.25,233.12,4.2895]
[1731846010883,23.776884,233.22,233.12,4.2895]
[1731846011203,0.34465462,233.21,233.11,10.7243]
[1731846011405,0.34465462,233.21,233.01,53.8346]
[1731846011406,0.25098,233.21,233.08,4.2903]
[1731846011592,23.87055862,233.18,233.06,4.2906]
[1731846012602,23.87055862,233.18,233.05,10.7272]
[1731846012603,23.776884,233.16,233.05,10.7272]
[1731846013404,23.776884,233.16,233.0,4.2917]
[1731846013405,0.21916462,233.13,233.0,4.2917]
[1731846013585,23.902374,233.12,233.0,4.2917]
[1731846013908,0.12549,233.11,233.0,4.2917]
[1731846014082,0.21916462,233.11,233.0,4.2917]
[1731846014610,23.776884,233.09,232.99,10.7297]
[1731846015602,23.776884,233.07,232.99,10.7297]
[1731846015814,23.776884,233.07,232.84,0.1]
[1731846015815,0.34465462,233.04,232.86,15.0304]
[1731846016098,0.25098,233.04,232.86,15.0304]
[1731846016506,20.0,233.02,232.86,15.0304]
[1731846016693,0.34465462,233.01,232.86,15.0304]
[1731846017013,4.63635462,233.01,232.86,15.0304]
[1731846017199,0.34465462,232.99,232.86,15.0304]
[1731846017389,23.776884,232.98,232.86,15.0304]
[1731846017800,20.25098,232.99,232.86,15.0304]
[1731846017998,0.09367462,232.96,232.86,15.0304]
[1731846018303,23.87055862,232.96,232.86,10.736]
[1731846018488,0.25098,232.95,232.86,10.736]
[1731846019307,0.25098,232.95,232.78,15.0356]
[1731846019506,0.09367462,232.94,232.78,15.0356]
[1731846019712,0.09367462,232.94,232.73,4.7524935]
[1731846019713,0.34465462,232.87,232.73,4.7524935]
[1731846019882,0.34465462,232.84,232.73,0.4557935]
[1731846020086,23.776884,232.86,232.73,11.1977935]
[1731846020282,0.25098,232.85,232.73,15.4943935]
[1731846020594,0.09367462,232.82,232.73,11.1977935]
[1731846020906,0.25098,232.81,232.73,11.1977935]
[1731846021206,0.09367462,232.78,232.73,0.4557935]
[1731846021410,0.21916462,232.76,232.73,0.4557935]
[1731846021707,0.34465462,232.74,232.73,0.4557935]
[1731846021907,23.776884,232.75,232.73,0.4557935]
[1731846022717,0.34465462,232.74,232.73,0.4557935]
[1731846024198,0.2,232.83,232.73,0.4557935]
[1731846024524,31.0596,232.91,232.73,0.4557935]
[1731846024525,4.3947,232.84,232.73,0.4557935]
[1731846024686,0.09367462,232.83,232.73,0.4557935]
[1731846025406,0.09367462,232.75,232.73,0.4557935]
[1731846025583,20.09367462,232.75,232.73,0.4557935]
[1731846025783,24.12153862,232.74,232.73,0.4557935]
[1731846025995,44.12153862,232.74,232.73,0.4557935]
[1731846026198,48.51813862,232.74,232.73,0.4557935]
[1731846026408,48.41813862,232.74,232.73,0.4557935]
[1731846026615,23.776884,232.74,232.73,0.4557935]
[1731846027089,13.0447,232.76,232.73,0.4557935]
[1731846027406,0.1,232.84,232.73,0.4557935]
[1731846027587,0.2,232.84,232.73,4.7524935]
[1731846028111,4.2946,232.85,232.73,4.7524935]
[1731846028995,4.2949,232.83,232.73,4.7524935]
[1731846029197,4.2946,232.85,232.73,15.4944935]
[1731846029408,13.0447,232.86,232.73,15.4944935]
[1731846029918,4.2946,232.85,232.73,15.4945935]
[1731846030091,13.0447,232.86,232.73,15.4945935]
[1731846030291,17.3392,232.86,232.73,15.4945935]
[1731846030815,0.09367462,232.85,232.73,15.4945935]
[1731846031415,4.42019,232.84,232.73,15.4945935]
[1731846031612,23.776884,232.83,232.73,15.4945935]
[1731846032415,0.34465462,232.82,232.73,11.1977935]
[1731846032718,0.09367462,232.76,232.73,0.4557935]
[1731846032891,44.22153862,232.76,232.73,0.4557935]
[1731846033412,44.12153862,232.74,232.73,0.4557935]
[1731846034512,23.776884,232.74,232.73,0.4557935]
[1731846034912,28.16685862,232.76,232.58,20.0]
[1731846035388,20.0,232.75,232.57,11.36652077]
[1731846035704,23.776884,232.72,232.57,11.36652077]
[1731846036015,23.776884,232.7,232.57,11.36652077]
[1731846036809,28.074284,232.7,232.58,15.0484]
[1731846037213,23.776884,232.7,232.58,15.0484]
[1731846037524,4.2955,232.8,232.59,20.0]
[1731846038122,4.293,232.81,232.61,20.0]
[1731846038302,12.0982,232.84,232.61,20.0]
[1731846038497,12.0982,232.84,232.62,0.1]
[1731846038899,12.0982,232.84,232.63,36.5385]
[1731846039094,12.0982,232.84,232.64,20.0]
[1731846039307,42.6958,232.93,232.64,20.0]
[1731846039308,12.0982,232.91,232.66,20.0]
[1731846040020,12.0982,232.91,232.68,20.0]
[1731846040519,16.3918,232.91,232.69,36.5292]
[1731846040689,24.027864,232.9,232.7,20.0]
[1731846042515,23.776884,232.88,232.72,20.0]
[1731846043020,24.027864,232.9,232.72,20.0]
[1731846043224,21.4523,233.08,232.72,20.0]
[1731846043225,4.2926,232.96,232.72,20.0]
[1731846043518,4.2926,232.96,232.71,36.5259]
[1731846043519,0.1,232.95,232.74,20.0]
[1731846044297,0.09367462,232.94,232.74,20.0]
[1731846044500,23.99604862,232.92,232.75,15.0375]
[1731846044817,0.25098,232.91,232.75,15.0375]
[1731846045023,0.21916462,232.9,232.75,15.0375]
[1731846045317,0.21916462,232.9,232.73,12.4985]
[1731846045318,0.25098,232.89,232.73,12.4985]
[1731846045917,0.1,232.85,232.68,12.4985]
[1731846046099,0.1,232.85,232.67,32.1436]
[1731846046100,0.34465462,232.84,232.67,32.1436]
[1731846046299,24.12153862,232.84,232.67,32.1436]
[1731846046500,0.34465462,232.82,232.7,10.7433]
[1731846046700,24.12153862,232.82,232.7,10.7433]
[1731846047416,36.21973862,232.82,232.7,10.7433]
[1731846047604,24.2942,232.87,232.7,10.7433]
[1731846047809,12.0982,232.88,232.7,10.7433]
[1731846047995,11.55991411,232.93,232.72,0.1]
[1731846048321,16.391,232.95,232.72,0.1]
[1731846048526,12.0982,232.95,232.73,36.5229]
[1731846048821,0.2,233.05,232.73,36.5229]
[1731846048822,16.3891,233.05,232.77,0.1]
[1731846049023,16.3891,233.05,232.78,20.0]
[1731846049817,13.0741,233.12,232.85,32.3491]
[1731846050004,0.09367462,233.11,232.86,0.1]
[1731846050204,13.0741,233.12,232.86,0.1]
[1731846050518,4.29,233.1,232.87,15.0298]
[1731846050718,4.29,233.1,232.88,20.0]
[1731846050926,24.027864,233.09,232.87,36.501]
[1731846051110,23.776884,233.09,232.87,36.501]
[1731846051314,4.29,233.1,232.88,20.0]
[1731846052224,13.0741,233.12,232.89,0.1]
[1731846052435,4.2896,233.12,232.93,20.0]
[1731846052605,4.2889,233.16,232.94,15.0252]
[1731846052798,0.09367462,233.15,232.95,20.0]
[1731846053121,4.2889,233.16,232.95,20.0]
[1731846053727,4.2889,233.16,232.97,20.0]
[1731846053929,0.09367462,233.15,232.97,20.0]
[1731846054814,24.027864,233.13,232.98,15.0227]
[1731846055124,23.776884,233.11,232.98,15.0227]
[1731846055498,0.25098,233.12,232.98,15.0227]
[1731846055908,0.09367462,233.11,232.98,15.0227]
[1731846056123,0.09367462,233.09,232.98,15.0227]
[1731846057003,4.2903,233.08,232.93,15.0259]
[1731846057207,23.776884,233.07,232.93,15.0259]
[1731846057821,20.34465462,233.06,232.93,15.0259]
[1731846058027,0.34465462,233.04,232.93,15.0259]
[1731846059030,4.29,233.1,232.87,21.4712]
[1731846059204,24.027864,233.09,232.87,21.4712]
[1731846059518,23.776884,233.07,232.87,21.4712]
[1731846059902,23.776884,233.09,232.87,21.4712]
[1731846060107,0.09367462,233.06,232.87,21.4712]
[1731846060612,28.067384,233.07,232.87,21.4712]
[1731846062021,23.776884,233.07,232.87,25.7654]
[1731846062225,23.776884,233.07,232.87,36.501]
[1731846063429,23.776884,233.07,232.88,0.1]
[1731846063732,23.776884,233.05,232.89,36.4977]
[1731846064608,23.776884,233.05,232.89,32.2039]
[1731846065224,4.2889,233.16,232.9,0.1]
[1731846066318,0.25098,233.15,232.91,57.9622]
[1731846066625,0.21916462,233.11,232.91,57.9622]
[1731846066821,0.21916462,233.09,232.91,57.9622]
[1731846067727,23.776884,233.08,232.91,53.6687]
[1731846067909,0.34465462,233.07,232.91,53.6687]
[1731846068738,4.2907,233.06,232.91,42.935]
[1731846069031,23.776884,233.05,232.91,42.935]
[1731846069244,0.34465462,233.04,232.91,21.4675]
[1731846069936,23.776884,233.05,232.91,21.4675]
[1731846070108,28.318464,233.07,232.91,21.4675]
[1731846070311,0.09367462,233.06,232.91,21.4675]
[1731846070626,28.318464,233.07,232.91,21.4675]
[1731846071408,28.318464,233.07,232.88,15.0291]
[1731846071616,28.318464,233.07,232.88,36.4993]
[1731846071617,0.09367462,233.06,232.88,36.4993]
[1731846072618,0.09367462,233.06,232.88,32.2053]
[1731846073121,24.027864,233.05,232.88,32.2053]
[1731846073836,4.2905,233.08,232.88,32.3053]
[1731846074041,4.29,233.1,232.88,32.3053]
[1731846074821,4.29,233.1,232.88,58.0695]
[1731846075024,4.2894,233.14,232.93,12.8728]
[1731846076242,0.25098,233.13,232.93,12.8728]
[1731846076419,28.317364,233.13,232.94,36.4899]
[1731846078643,0.12549,233.1,232.94,36.4899]
[1731846081140,0.25098,233.08,232.94,36.4899]
[1731846081848,4.2887,233.17,232.95,30.0551]
[1731846082019,4.2887,233.17,232.96,15.0239]
[1731846082925,0.19367462,233.16,232.96,15.0239]
[1731846083240,0.09367462,233.14,232.96,15.0239]
[1731846084130,24.12153862,233.12,232.96,15.0239]
[1731846084746,24.12153862,233.1,232.96,15.0239]
[1731846085042,24.12153862,233.08,232.96,10.7314]
[1731846085941,24.12153862,233.08,232.96,15.0239]
[1731846086121,24.027864,233.08,232.96,15.0239]
[1731846086321,4.2901,233.1,232.96,36.4868]
[1731846086524,12.0395,233.16,232.96,36.4868]
[1731846086833,6.7184045,233.26,232.96,36.4868]
[1731846086834,4.2866,233.28,233.0,0.1]
[1731846087038,4.4866,233.28,232.99,23.776884]
[1731846087423,4.2866,233.28,233.04,30.0551]
[1731846087628,4.2866,233.28,233.05,12.4927]
[1731846087822,0.09367462,233.27,233.05,12.4927]
[1731846088148,0.1,233.27,233.06,15.0175]
[1731846088444,0.2,233.26,233.06,15.0175]
[1731846088622,0.1,233.27,233.06,15.0175]
[1731846089336,0.09367462,233.22,233.06,15.0175]
[1731846089537,0.09367462,233.2,233.06,15.0175]
[1731846089735,0.34465462,233.2,233.06,15.0175]
[1731846090048,0.09367462,233.16,233.04,30.0551]
[1731846090341,20.12549,233.11,232.97,12.5393]
[1731846090551,0.12549,233.07,232.96,43.3918]
[1731846090736,0.25098,233.05,232.96,43.3918]
[1731846090933,0.25098,233.05,232.96,47.6843]
[1731846091140,0.12549,233.03,232.96,32.6605]
[1731846091439,0.25098,233.03,232.96,32.6605]
[1731846092160,23.776884,233.02,232.96,32.6605]
[1731846092840,4.2892,233.14,232.96,47.6843]
[1731846093548,23.4345,233.21,232.96,47.6843]
[1731846093549,4.288,233.21,233.0,0.1]
[1731846093729,4.288,233.21,233.01,32.282]
[1731846093932,4.287,233.26,233.01,32.282]
[1731846094148,4.2866,233.28,233.02,15.02]
[1731846094748,0.1,233.26,233.02,15.02]
[1731846095050,0.29367462,233.25,233.02,15.02]
[1731846095426,0.2,233.25,233.02,36.4773]
[1731846095849,0.09367462,233.24,233.02,36.4773]
[1731846096347,0.09367462,233.22,233.02,36.4773]
[1731846096546,0.09367462,233.22,233.03,13.2328]
[1731846096851,0.09367462,233.18,233.03,13.2328]
[1731846097051,0.09367462,233.16,233.01,32.282]
[1731846097250,0.34465462,233.16,233.01,32.282]
[1731846097427,20.25098,233.12,233.01,32.282]
[1731846097625,23.776884,233.11,233.01,32.282]
[1731846097827,0.25098,233.1,233.01,32.282]
[1731846098028,23.776884,233.11,233.01,36.5735]
[1731846098228,23.776884,233.14,233.01,47.3026]
[1731846098430,0.09367462,233.13,233.01,47.3026]
[1731846099046,23.776884,233.14,233.01,47.3026]
[1731846099427,24.2877,233.22,233.01,47.3026]
[1731846099829,4.2877,233.22,233.01,68.7609]
[1731846100030,4.2866,233.28,233.02,13.2328]
[1731846100350,4.2866,233.28,233.04,31.5531]
[1731846100739,4.7421935,233.3,233.07,13.2328]
[1731846100950,4.7421935,233.3,233.08,31.5531]
[1731846101348,0.4557935,233.3,233.08,31.5531]
[1731846101534,0.4557935,233.3,233.05,4.51495015]
[1731846101535,0.4557935,233.3,233.11,13.2328]
[1731846101850,0.4557935,233.3,233.12,31.5531]
[1731846102148,0.4557935,233.3,233.13,36.4602]
[1731846103245,4.7421935,233.3,233.13,36.4602]
[1731846103656,4.7421935,233.3,233.13,15.013]
[1731846103828,4.7421935,233.3,233.13,10.7236]
[1731846103829,0.09367462,233.26,233.13,10.7236]
[1731846104029,0.09367462,233.22,233.12,31.5531]
[1731846104265,0.12549,233.21,233.12,31.5531]
[1731846104435,0.09367462,233.22,233.12,46.5666]
[1731846104636,23.776884,233.23,233.12,46.5666]
[1731846105149,0.09367462,233.28,233.12,46.5666]
[1731846105446,4.7421935,233.3,233.12,46.5666]
[1731846106246,0.09367462,233.29,233.12,46.5666]
[1731846106445,0.2,233.28,233.12,31.5531]
[1731846106647,20.34465462,233.25,233.12,31.5531]
[1731846106956,0.21916462,233.21,233.12,31.5531]
[1731846107353,28.064684,233.22,233.12,35.8426]
[1731846107538,4.2865,233.29,233.12,35.8426]
[1731846107933,0.4557935,233.3,233.12,46.5666]
[1731846108530,4.7421935,233.3,233.12,46.5666]
[1731846109752,0.09367462,233.27,233.12,68.0147]
[1731846109953,4.7421935,233.3,233.12,68.0147]
[1731846110761,0.21916462,233.29,233.12,68.0147]
[1731846111055,4.7421935,233.3,233.12,68.0147]
[1731846111434,4.2866,233.28,233.12,68.0147]
[1731846112262,23.87055862,233.27,233.12,68.0147]
[1731846112655,4.2866,233.28,233.12,68.0147]
[1731846117643,4.7421935,233.3,233.12,68.0147]
[1731846120567,4.7421935,233.3,233.14,13.2246]
[1731846120568,0.4557935,233.3,233.14,13.2246]
[1731846121750,0.4557935,233.3,233.15,36.4571]
[1731846121953,0.4557935,233.3,233.16,30.1897]
[1731846122670,0.4557935,233.3,233.17,36.4539]
[1731846124851,4.7421935,233.3,233.17,14.82905806]
[1731846125666,0.4557935,233.3,233.17,36.27255806]
[1731846127883,0.4557935,233.3,233.12,21.4481]
[1731846127884,20.34465462,233.23,233.07,7.21553678]
[1731846128051,0.21916462,233.17,233.07,7.21553678]
[1731846128388,23.976884,233.16,233.02,30.1897]
[1731846128554,0.2,233.17,233.02,30.1897]
[1731846128877,0.09367462,233.15,233.02,30.1897]
[1731846129372,0.25098,233.15,233.02,40.9183]
[1731846129557,0.21916462,233.14,233.02,40.9183]
[1731846129864,23.776884,233.12,233.02,40.9183]
[1731846130068,23.776884,233.12,233.02,30.1897]
[1731846130374,4.2894,233.13,233.02,30.1897]
[1731846130568,23.776884,233.12,233.02,30.1897]
[1731846131046,4.2894,233.13,233.02,34.481]
[1731846132662,0.2,233.25,233.02,45.2096]
[1731846132866,4.2876,233.23,233.02,45.2096]
[1731846133549,4.2876,233.23,233.03,23.776884]
[1731846133770,4.2876,233.23,233.03,23.876884]
[1731846133978,4.2876,233.23,233.05,0.1]
[1731846134275,4.2866,233.28,233.1,13.1133]
[1731846134473,4.2866,233.28,233.11,31.1982]
[1731846134690,0.2,233.32,233.12,15.0136]
[1731846134858,4.286,233.32,233.13,23.776884]
[1731846135473,4.286,233.32,233.14,0.1]
[1731846135869,4.286,233.32,233.15,15.0117]
[1731846136178,32.7962,233.42,233.15,15.0117]
[1731846136179,0.2,233.5,233.24,0.1]
[1731846136359,0.2,233.49,233.23,44.6682]
[1731846136556,36.6039,233.49,233.23,44.6682]
[1731846136756,13.0099,233.48,233.23,44.6682]
[1731846137573,0.09367462,233.46,233.23,44.6682]
[1731846137874,0.09367462,233.44,233.24,4.2874]
[1731846138064,0.2,233.43,233.24,4.2874]
[1731846138474,0.2,233.43,233.24,15.0059]
[1731846139559,4.2841,233.42,233.24,15.0059]
[1731846141368,0.09367462,233.44,233.24,15.0059]
[1731846141767,23.87055862,233.44,233.24,15.0059]
[1731846141964,20.12549,233.43,233.24,15.0059]
[1731846142166,0.21916462,233.4,233.24,15.0059]
[1731846142457,0.12549,233.37,233.24,15.0059]
[1731846142767,0.2,233.38,233.24,15.0059]
[1731846143169,0.34465462,233.37,233.24,15.0059]
[1731846143366,4.2852,233.36,233.24,15.0059]
[1731846143590,4.2852,233.36,233.24,10.7185]
[1731846143760,0.34465462,233.35,233.23,44.6682]
[1731846143967,24.12153862,233.35,233.23,44.6682]
[1731846144469,4.2852,233.36,233.23,48.9556]
[1731846144881,0.34465462,233.35,233.23,44.6682]
[1731846145080,23.87055862,233.33,233.23,44.6682]
[1731846145292,0.09367462,233.29,233.23,31.6923]
[1731846145485,23.776884,233.29,233.17,44.6682]
[1731846145684,4.2863,233.3,233.17,59.6784]
[1731846146186,20.0,233.36,233.17,59.6784]
[1731846146579,23.87055862,233.35,233.17,59.6784]
[1731846146968,20.0,233.34,233.17,59.6784]
[1731846147169,4.2859,233.32,233.17,59.6784]
[1731846147482,4.2843,233.41,233.17,81.1219]
[1731846147791,0.09367462,233.4,233.17,81.1219]
[1731846148988,43.99604862,233.4,233.17,81.1219]
[1731846149177,0.09367462,233.38,233.17,81.1219]
[1731846149492,20.0,233.37,233.17,81.1219]
[1731846149994,23.776884,233.36,233.19,30.1184]
[1731846150287,28.062084,233.36,233.19,66.5692]
[1731846150893,28.062084,233.36,233.19,45.1275]
[1731846150894,20.34465462,233.35,233.19,45.1275]
[1731846151073,0.25098,233.35,233.19,45.1275]
[1731846151275,28.062084,233.36,233.19,45.1275]
[1731846151470,4.2841,233.42,233.19,66.5692]
[1731846152195,0.09367462,233.39,233.19,66.5692]
[1731846152776,23.87055862,233.35,233.19,30.1184]
[1731846152978,23.87055862,233.31,233.19,30.1184]
[1731846153287,0.09367462,233.29,233.19,30.1184]
[1731846154313,23.776884,233.27,233.19,30.1184]
[1731846154493,4.2864,233.3,233.19,45.1274]
[1731846155193,4.286,233.32,233.19,45.1274]
[1731846155391,0.2,233.34,233.19,45.1274]
[1731846155566,4.2848,233.38,233.19,45.1274]
[1731846155769,0.29367462,233.37,233.19,30.1184]
[1731846156194,0.09367462,233.35,233.19,30.1184]
[1731846156367,14.09187462,233.36,233.19,34.4066]
[1731846156785,44.027864,233.35,233.19,34.4066]
[1731846156983,43.776884,233.35,233.19,45.1274]
[1731846158172,23.776884,233.33,233.19,45.1274]
[1731846158369,4.2855,233.34,233.19,45.1274]
[1731846159375,0.09367462,233.31,233.19,45.1274]
[1731846159698,23.87055862,233.31,233.19,40.8392]
[1731846159885,23.776884,233.29,233.19,40.8392]
[1731846160983,23.776884,233.29,233.19,45.1275]
[1731846161189,23.776884,233.29,233.19,40.8392]
[1731846161405,23.776884,233.27,233.19,40.8392]
[1731846161873,23.776884,233.27,233.19,45.1275]
[1731846162075,20.09367462,233.26,233.19,30.1184]
[1731846162269,23.776884,233.25,233.19,30.1184]
[1731846163469,4.2874,233.24,233.19,30.1184]
[1731846163673,23.776884,233.23,233.19,30.1184]
[1731846165383,4.2874,233.24,233.19,30.1184]
[1731846166838,23.99604862,233.23,233.19,30.1184]
[1731846167006,23.99604862,233.23,233.13,30.7097]
[1731846167405,0.09367462,233.21,233.13,30.7097]
[1731846167691,23.776884,233.19,233.13,30.7097]
[1731846168294,0.2,233.3,233.13,30.7097]
[1731846168494,45.919,233.29,233.13,30.7097]
[1731846168697,56.6352,233.29,233.13,30.7097]
[1731846168896,0.09367462,233.28,233.13,30.7097]
[1731846169102,0.09367462,233.28,233.13,34.999]
[1731846169279,0.09367462,233.28,233.13,30.7097]
[1731846169599,44.12153862,233.24,233.13,30.7097]
[1731846169802,0.34465462,233.22,233.13,30.7097]
[1731846171906,24.12153862,233.2,233.13,30.7097]
[1731846172399,0.21916462,233.16,233.13,30.7097]
[1731846172605,23.99604862,233.16,233.07,31.7731]
[1731846173995,23.776884,233.14,233.07,31.7731]
[1731846174199,23.776884,233.14,233.07,36.0636]
[1731846174694,4.2876,233.23,233.08,20.0]
[1731846174894,4.2876,233.23,233.07,46.7899]
[1731846175281,4.2876,233.23,233.08,20.0]
[1731846176188,4.2876,233.23,233.1,20.0]
[1731846176189,0.09367462,233.22,233.1,20.0]
[1731846176388,4.2876,233.23,233.1,20.0]
[1731846177097,0.09367462,233.2,233.1,20.0]
[1731846177407,23.87055862,233.2,233.1,24.2898]
[1731846178287,23.87055862,233.2,233.1,4.2898]
[1731846178607,23.776884,233.2,233.1,15.0148]
[1731846179822,4.2883,233.19,233.1,15.0148]
[1731846180289,4.2873,233.25,233.11,20.0]
[1731846181801,23.99604862,233.24,233.12,15.0136]
[1731846182303,0.09367462,233.2,233.08,4.2902]
[1731846182493,0.09367462,233.18,233.08,4.2902]
[1731846182688,0.29367462,233.18,233.08,4.2902]
[1731846183193,0.32549,233.17,233.08,15.0161]
[1731846183398,0.32549,233.17,233.08,10.7259]
[1731846184002,23.776884,233.14,233.07,31.7731]
[1731846184183,0.34465462,233.13,233.07,31.7731]
[1731846184385,0.2,233.12,233.07,31.7731]
[1731846186004,23.776884,233.1,233.07,31.7731]
[1731846187215,0.2,233.18,233.07,31.7731]
[1731846187422,0.2,233.19,233.07,42.4994]
[1731846187603,30.921,233.25,233.08,20.0]
[1731846187932,0.2,233.26,233.08,20.0]
[1731846188094,0.2,233.31,233.12,20.0]
[1731846188294,4.2854,233.35,233.12,20.0]
[1731846188616,0.09367462,233.34,233.12,20.0]
[1731846189217,14.9989,233.35,233.13,15.013]
[1731846189412,14.9989,233.35,233.14,20.0]